bitfinex-derivatives/quotes_BTCF0:USTF0_20240814
["timestamp","ask_amount","ask_price","bid_price","bid_amount"]
[1723613432455,0.01,60960.0,60959.0,0.1134]
[1723613432652,0.057394,60963.0,60959.0,0.1134]
[1723613432850,0.4808,60962.0,60961.0,0.057396]
[1723613433159,0.5942,60962.0,60961.0,0.057396]
[1723613434460,0.5942,60962.0,60955.0,0.0473]
[1723613434658,0.5942,60962.0,60946.0,0.4426328]
[1723613434659,0.057402,60954.0,60951.0,0.04909968]
[1723613434855,0.057402,60954.0,60945.0,0.046]
[1723613434856,0.290802,60954.0,60948.0,0.04909968]
[1723613435054,0.290802,60954.0,60947.0,0.04909968]
[1723613435247,0.290802,60954.0,60948.0,0.04909968]
[1723613435447,0.290802,60954.0,60950.0,0.1134]
[1723613435654,0.177402,60954.0,60950.0,0.1134]
[1723613436956,0.290802,60954.0,60950.0,0.1134]
[1723613437263,0.290802,60954.0,60951.0,0.057404]
[1723613437463,0.295802,60954.0,60951.0,0.057404]
[1723613437855,0.295802,60954.0,60949.0,0.04909968]
[1723613438059,0.295802,60954.0,60948.0,0.04909968]
[1723613438561,0.295802,60954.0,60953.0,0.00324601]
[1723613439153,0.296802,60954.0,60953.0,0.00324601]
[1723613439359,0.296802,60954.0,60953.0,0.00024601]
[1723613439360,0.291802,60954.0,60953.0,0.00024601]
[1723613439665,0.293802,60954.0,60953.0,0.00324601]
[1723613440664,0.292802,60954.0,60953.0,0.00324601]
[1723613441755,0.059402,60954.0,60953.0,0.00324601]
[1723613441956,0.169402,60954.0,60953.0,0.00324601]
[1723613444063,0.226804,60954.0,60953.0,0.00324601]
[1723613444258,0.274904,60954.0,60953.0,0.00324601]
[1723613448658,0.057408,60948.0,60945.0,0.04909968]
[1723613448864,0.057412,60944.0,60943.0,0.04909968]
[1723613449060,0.12,60944.0,60941.0,0.40989968]
[1723613449466,0.12,60944.0,60941.0,0.04909968]
[1723613449770,0.057414,60941.0,60940.0,0.04909968]
[1723613450073,0.12,60941.0,60938.0,0.04909968]
[1723613450257,0.057417,60938.0,60937.0,0.04909968]
[1723613450569,0.157417,60938.0,60937.0,0.04909968]
[1723613452467,0.057418,60937.0,60936.0,0.00024601]
[1723613452669,0.157418,60937.0,60936.0,0.00024601]
[1723613454176,0.518218,60937.0,60936.0,0.00024601]
[1723613455068,0.520218,60937.0,60936.0,0.00024601]
[1723613456268,0.519218,60937.0,60936.0,0.00024601]
[1723613459678,0.576636,60937.0,60936.0,0.00024601]
[1723613460274,0.582636,60937.0,60936.0,0.00024601]
[1723613460576,0.582636,60937.0,60928.0,0.0456]
[1723613460577,0.057426,60929.0,60928.0,0.0456]
[1723613460776,0.057429,60925.0,60924.0,0.09496217]
[1723613460975,0.157429,60925.0,60924.0,0.09496217]
[1723613461472,0.157429,60925.0,60924.0,0.0459]
[1723613462768,0.158429,60925.0,60924.0,0.0459]
[1723613463875,0.159429,60925.0,60924.0,0.0459]
[1723613475374,0.159429,60925.0,60924.0,0.09496217]
[1723613475574,0.159429,60925.0,60924.0,0.0459]
[1723613475985,0.272929,60925.0,60924.0,0.0459]
[1723613476784,0.272929,60925.0,60923.0,0.06535698]
[1723613476785,0.05743,60924.0,60923.0,0.06535698]
[1723613476988,0.05743,60924.0,60920.0,0.06553509]
[1723613476989,0.057433,60921.0,60920.0,0.06553509]
[1723613477286,0.290933,60921.0,60920.0,0.06553509]
[1723613477980,0.177433,60921.0,60920.0,0.06553509]
[1723613478286,0.177433,60921.0,60920.0,0.00017811]
[1723613478781,0.178433,60921.0,60920.0,0.00017811]
[1723613479288,0.596666,60921.0,60920.0,0.00017811]
[1723613480689,0.597666,60921.0,60920.0,0.00017811]
[1723613484793,0.236866,60921.0,60920.0,0.00017811]
[1723613485289,0.597666,60921.0,60920.0,0.00017811]
[1723613488294,0.541233,60921.0,60920.0,0.00017811]
[1723613492097,0.539233,60921.0,60920.0,0.00017811]
[1723613492397,0.540233,60921.0,60920.0,0.00017811]
[1723613493705,0.4828,60921.0,60920.0,0.04930181]
[1723613493904,0.122,60921.0,60920.0,0.41841211]
[1723613494089,0.122,60921.0,60920.0,1.31085211]
[1723613494388,0.122,60921.0,60920.0,1.51768507]
[1723613494594,0.122,60921.0,60920.0,1.43585227]
[1723613495597,0.122,60921.0,60920.0,1.51768065]
[1723613496500,0.122,60921.0,60920.0,1.51768]
[1723613498811,0.122,60921.0,60920.0,1.11768]
[1723613499101,0.179433,60921.0,60920.0,0.00017811]
[1723613499496,0.179433,60921.0,60920.0,0.04927269]
[1723613499902,0.179433,60921.0,60920.0,0.00017811]
[1723613500093,0.179433,60921.0,60920.0,0.04927269]
[1723613500298,0.179433,60921.0,60920.0,0.04927656]
[1723613500805,0.179433,60921.0,60920.0,0.00017811]
[1723613501892,0.179433,60921.0,60920.0,0.06564271]
[1723613502097,0.179433,60921.0,60920.0,0.00017811]
[1723613503698,0.179433,60921.0,60920.0,0.06564271]
[1723613503903,0.179433,60921.0,60920.0,0.00017811]
[1723613506901,0.540233,60921.0,60920.0,0.00017811]
[1723613508206,0.597666,60921.0,60920.0,0.00017811]
[1723613509103,0.540233,60921.0,60920.0,0.00017811]
[1723613509905,0.179433,60921.0,60920.0,0.00017811]
[1723613511206,0.179433,60921.0,60920.0,0.04929807]
[1723613512509,0.179433,60921.0,60920.0,0.00017811]
[1723613516913,0.179433,60921.0,60920.0,0.06566548]
[1723613517216,0.179433,60921.0,60920.0,0.00017811]
[1723613520329,0.179433,60921.0,60920.0,0.05761211]
[1723613521816,0.122,60921.0,60920.0,0.05761211]
[1723613522014,0.122,60921.0,60920.0,1.56418715]
[1723613522015,0.035,60921.0,60920.0,1.56418715]
[1723613522215,0.035,60921.0,60920.0,1.55283]
[1723613522824,0.035,60921.0,60920.0,1.55240172]
[1723613523715,0.002,60921.0,60920.0,1.55240172]
[1723613524916,0.057418,60937.0,60930.0,0.057425]
[1723613525218,0.057418,60937.0,60930.0,0.418225]
[1723613525725,0.057418,60937.0,60930.0,0.057425]
[1723613525913,0.057418,60937.0,60930.0,0.418225]
[1723613526113,0.3608,60941.0,60930.0,0.957985]
[1723613526324,0.418215,60941.0,60930.0,0.957985]
[1723613526519,0.3608,60941.0,60930.0,0.957985]
[1723613526725,0.3608,60941.0,60930.0,0.465625]
[1723613526924,0.3608,60941.0,60930.0,0.957985]
[1723613527225,0.00824601,60931.0,60930.0,0.957985]
[1723613527531,0.00824601,60931.0,60930.0,0.465625]
[1723613528823,0.01324601,60931.0,60930.0,0.465625]
[1723613532218,0.13324601,60931.0,60930.0,0.465625]
[1723613534721,0.13324601,60931.0,60930.0,0.418225]
[1723613535128,0.19067001,60931.0,60930.0,0.3608]
[1723613535925,0.057427,60929.0,60926.0,0.057428]
[1723613536124,0.167427,60929.0,60928.0,0.3608]
[1723613537630,0.171427,60929.0,60928.0,0.3608]
[1723613539224,0.167427,60929.0,60928.0,0.3608]
[1723613539426,0.006,60929.0,60928.0,0.418227]
[1723613540333,0.006,60929.0,60928.0,0.910627]
[1723613540532,0.006,60929.0,60928.0,0.418227]
[1723613541240,0.006,60929.0,60928.0,0.910627]
[1723613541434,0.006,60929.0,60928.0,0.99248226]
[1723613541821,0.009,60929.0,60928.0,0.50008226]
[1723613542028,0.009,60929.0,60928.0,0.418227]
[1723613542430,0.109,60929.0,60928.0,0.418227]
[1723613542635,0.109,60929.0,60928.0,0.48367227]
[1723613542928,0.109,60929.0,60927.0,0.06544753]
[1723613542929,0.4698,60929.0,60927.0,0.06544753]
[1723613543133,0.057429,60926.0,60925.0,0.0490893]
[1723613543634,0.167429,60926.0,60925.0,0.0490893]
[1723613543938,0.057429,60926.0,60925.0,0.0490893]
[1723613544129,0.05743,60925.0,60923.0,0.06544753]
[1723613544329,0.3608,60929.0,60925.0,0.001]
[1723613544529,0.057428,60927.0,60926.0,0.04909698]
[1723613544731,0.177428,60927.0,60926.0,0.04909698]
[1723613545342,0.177428,60927.0,60926.0,0.04910255]
[1723613545529,0.177428,60927.0,60925.0,0.001]
[1723613545731,0.177428,60927.0,60925.0,0.12387653]
[1723613545927,0.177428,60927.0,60926.0,0.06544753]
[1723613546432,0.177428,60927.0,60925.0,0.058429]
[1723613546734,0.00024601,60931.0,60925.0,0.001]
[1723613546940,0.01024601,60931.0,60930.0,0.04912211]
[1723613547542,0.057426,60930.0,60928.0,0.06549615]
[1723613547733,0.057426,60929.0,60928.0,0.06549615]
[1723613547935,0.177426,60929.0,60928.0,0.06549615]
[1723613548237,0.177426,60929.0,60927.0,0.12292315]
[1723613548433,0.177426,60929.0,60928.0,0.06550906]
[1723613548635,0.177426,60929.0,60927.0,0.057427]
[1723613549035,0.177426,60929.0,60927.0,0.12293606]
[1723613549238,0.12,60929.0,60928.0,0.057427]
[1723613549440,0.12,60929.0,60928.0,0.12293606]
[1723613549642,0.12,60929.0,60928.0,0.057427]
[1723613550144,0.00024601,60931.0,60929.0,0.057425]
[1723613550339,0.00024601,60931.0,60929.0,0.12295853]
[1723613551148,0.00024601,60931.0,60930.0,0.057425]
[1723613551337,0.00024601,60931.0,60930.0,0.13931133]
[1723613551646,0.00024601,60931.0,60930.0,0.18240693]
[1723613552343,0.00224601,60931.0,60930.0,0.18240693]
[1723613552544,0.00624601,60931.0,60930.0,0.18240693]
[1723613555350,0.00624601,60931.0,60930.0,0.23180693]
[1723613557138,0.00624601,60931.0,60930.0,1.12416693]
[1723613559439,0.00624601,60931.0,60930.0,0.72415608]
[1723613559645,0.00624601,60931.0,60930.0,0.82242479]
[1723613559846,0.00624601,60931.0,60930.0,0.82242468]
[1723613560453,0.00624601,60931.0,60930.0,0.80878646]
[1723613561245,0.00624601,60931.0,60930.0,0.71051786]
[1723613563056,0.00624601,60931.0,60930.0,1.20878646]
[1723613564041,1e-08,60931.0,60930.0,1.11051786]
[1723613564351,0.11429067,60957.0,60931.0,0.057423]
[1723613564554,0.057402,60955.0,60951.0,0.06547379]
[1723613564757,0.167402,60955.0,60953.0,0.06547379]
[1723613565251,0.167402,60955.0,60952.0,0.06547379]
[1723613565445,0.167402,60955.0,60951.0,0.06547379]
[1723613565845,0.167402,60955.0,60954.0,0.04906961]
[1723613566052,0.167402,60955.0,60953.0,0.04906961]
[1723613566253,0.0491,60957.0,60953.0,0.04906961]
[1723613566556,0.0491,60957.0,60948.0,0.36104622]
[1723613566557,0.0501,60957.0,60955.0,0.057401]
[1723613566950,0.0501,60957.0,60956.0,0.0574]
[1723613567146,0.0511,60957.0,60956.0,0.0574]
[1723613567457,0.0501,60957.0,60956.0,0.0574]
[1723613568055,0.0491,60957.0,60956.0,0.0574]
[1723613568256,0.0571,60957.0,60956.0,0.0574]
[1723613568560,0.0571,60957.0,60956.0,0.4182]
[1723613569154,0.0571,60957.0,60953.0,0.40986961]
[1723613569155,0.1671,60957.0,60953.0,0.40986961]
[1723613569461,0.057401,60955.0,60953.0,0.3608]
[1723613569758,0.057402,60954.0,60953.0,0.3608]
[1723613569957,0.177402,60954.0,60953.0,0.3608]
[1723613571170,0.182402,60954.0,60953.0,0.3608]
[1723613572549,0.057404,60952.0,60950.0,0.057405]
[1723613572754,0.167404,60952.0,60950.0,0.057405]
[1723613574258,0.169404,60952.0,60950.0,0.057405]
[1723613576057,0.169404,60952.0,60950.0,0.058405]
[1723613577954,0.002,60952.0,60950.0,0.001]
[1723613578155,0.002,60952.0,60951.0,0.057405]
[1723613578862,0.002,60952.0,60951.0,0.12287879]
[1723613579052,0.002,60952.0,60951.0,0.057405]
[1723613579662,0.1095,60957.0,60953.0,0.057403]
[1723613579861,0.2195,60957.0,60956.0,0.40980418]
[1723613580165,0.2195,60957.0,60956.0,0.4182]
[1723613580166,0.003,60957.0,60956.0,0.4182]
[1723613580468,0.003,60957.0,60956.0,0.4637]
[1723613580660,0.003,60957.0,60956.0,0.5114]
[1723613581158,0.003,60957.0,60956.0,0.4637]
[1723613581860,0.003,60957.0,60956.0,0.52903481]
[1723613582258,0.008,60957.0,60956.0,0.4637]
[1723613582766,0.003,60957.0,60956.0,0.4637]
[1723613584370,0.003,60957.0,60956.0,0.95586]
[1723613585255,0.00024622,60960.0,60959.0,0.057397]
[1723613585460,0.12024622,60960.0,60959.0,0.057397]
[1723613586065,0.12024622,60960.0,60959.0,0.549517]
[1723613586566,0.12024622,60960.0,60959.0,0.594617]
[1723613586969,0.12024622,60960.0,60959.0,0.102497]
[1723613587266,0.18543689,60960.0,60959.0,0.102497]
[1723613587457,0.12024622,60960.0,60959.0,0.057397]
[1723613588159,0.13224622,60960.0,60959.0,0.057397]
[1723613589065,0.14224622,60960.0,60959.0,0.057397]
[1723613589567,0.22373455,60960.0,60959.0,0.057397]
[1723613589763,0.14224622,60960.0,60959.0,0.057397]
[1723613590469,0.16882576,60960.0,60959.0,0.057397]
[1723613592267,0.26661176,60960.0,60959.0,0.057397]
[1723613593266,0.16882576,60960.0,60959.0,0.057397]
[1723613593681,0.14224622,60960.0,60959.0,0.057397]
[1723613594666,0.14224622,60960.0,60959.0,0.13923924]
[1723613595067,0.14224622,60960.0,60959.0,0.057397]
[1723613595470,0.14224622,60960.0,60959.0,0.13923924]
[1723613597372,0.14224622,60960.0,60959.0,0.08184224]
[1723613597569,0.14224622,60960.0,60958.0,0.08184224]
[1723613598362,0.14224622,60960.0,60959.0,0.057397]
[1723613598675,0.14224622,60960.0,60959.0,0.26416501]
[1723613599075,0.12024622,60960.0,60959.0,0.26416501]
[1723613599276,0.13124622,60960.0,60959.0,0.26416501]
[1723613599476,0.14024622,60960.0,60959.0,0.26416501]
[1723613599671,0.14024622,60960.0,60959.0,0.26416432]
[1723613601578,0.14124622,60960.0,60959.0,0.26416432]
[1723613602474,0.14124622,60960.0,60959.0,0.26419508]
[1723613602678,0.14224622,60960.0,60959.0,0.18232208]
[1723613603075,0.14224622,60960.0,60959.0,0.54789375]
[1723613603273,0.14224622,60960.0,60959.0,0.95814208]
[1723613603582,0.14224622,60960.0,60959.0,1.00494208]
[1723613604172,0.14224622,60960.0,60959.0,1.40494208]
[1723613604375,0.14224622,60960.0,60959.0,1.40492496]
[1723613604576,0.14224622,60960.0,60959.0,1.00492496]
[1723613604776,0.14224622,60960.0,60959.0,0.95812496]
[1723613605081,0.14224622,60960.0,60959.0,1.05635449]
[1723613605274,0.14224622,60960.0,60959.0,0.95812496]
[1723613605676,0.14224622,60960.0,60959.0,1.77795779]
[1723613605874,0.14224622,60960.0,60959.0,1.49425779]
[1723613606079,0.14224622,60960.0,60959.0,1.00213779]
[1723613606280,0.14224622,60960.0,60959.0,0.90390496]
[1723613606577,0.14224622,60960.0,60959.0,0.84650796]
[1723613606779,0.14224622,60960.0,60959.0,0.80348117]
[1723613607080,0.14224622,60960.0,60959.0,0.7216]
[1723613607275,0.14224622,60960.0,60959.0,0.80348117]
[1723613608279,0.14224622,60960.0,60959.0,0.92840509]
[1723613608779,0.14224622,60960.0,60959.0,0.90391861]
[1723613610582,0.14224622,60960.0,60959.0,1.00215144]
[1723613611479,0.14224622,60960.0,60959.0,0.90391861]
[1723613611682,0.14224622,60960.0,60959.0,1.00215144]
[1723613611987,0.14224622,60960.0,60959.0,0.90391861]
[1723613614687,0.14224622,60960.0,60959.0,1.00215144]
[1723613615089,0.14224622,60960.0,60959.0,0.90391861]
[1723613615787,0.14224622,60960.0,60959.0,1.04452499]
[1723613616088,0.14224622,60960.0,60959.0,0.90391861]
[1723613616276,0.14224622,60960.0,60959.0,1.00221651]
[1723613616692,0.14224622,60960.0,60959.0,0.90391861]
[1723613616894,0.14224622,60960.0,60959.0,0.90391873]
[1723613618380,0.14224622,60960.0,60959.0,0.48572173]
[1723613618581,0.19964222,60960.0,60959.0,0.48572173]
[1723613618783,1.50995822,60960.0,60959.0,0.12492173]
[1723613618983,1.50995822,60960.0,60957.0,0.06554301]
[1723613618984,1.50724531,60960.0,60957.0,0.06554301]
[1723613619189,0.0574,60956.0,60954.0,0.04916414]
[1723613619387,0.0574,60956.0,60952.0,0.04916414]
[1723613619388,0.3608,60955.0,60952.0,0.04916414]
[1723613619586,0.057405,60951.0,60950.0,0.04916414]
[1723613619782,0.13,60951.0,60948.0,0.04941036]
[1723613620085,0.3608,60949.0,60948.0,0.04941036]
[1723613620281,0.4708,60949.0,60948.0,0.04941036]
[1723613621088,0.4708,60949.0,60948.0,0.00024622]
[1723613621302,0.528207,60949.0,60948.0,0.00024622]
[1723613621506,0.528207,60949.0,60948.0,0.00324622]
[1723613621689,0.574807,60949.0,60948.0,0.00324622]
[1723613622898,0.528207,60949.0,60948.0,0.00324622]
[1723613625903,1.020407,60949.0,60948.0,0.00324622]
[1723613629615,0.528207,60949.0,60948.0,0.00324622]
[1723613631308,0.167407,60949.0,60948.0,0.00324622]
[1723613631508,0.528207,60949.0,60948.0,0.00324622]
[1723613633611,0.167407,60949.0,60948.0,0.06065422]
[1723613633913,0.11,60949.0,60948.0,0.06065422]
[1723613634516,0.002,60955.0,60952.0,0.057404]
[1723613634716,0.122,60955.0,60953.0,0.105103]
[1723613635122,0.122,60955.0,60954.0,0.057402]
[1723613636412,0.12,60955.0,60954.0,0.057402]
[1723613636608,0.133,60955.0,60954.0,0.057402]
[1723613637321,0.013,60955.0,60954.0,0.057402]
[1723613637514,0.017,60955.0,60954.0,0.057402]
[1723613639619,0.017,60955.0,60954.0,0.10637784]
[1723613640517,0.017,60955.0,60954.0,0.057402]
[1723613644413,0.017,60955.0,60954.0,0.12295114]
[1723613644814,0.017,60955.0,60954.0,0.057402]
[1723613645807,0.017,60955.0,60953.0,0.11324914]
[1723613645808,0.137,60955.0,60953.0,0.16230042]
[1723613646015,0.057402,60954.0,60953.0,0.04905128]
[1723613646213,0.167402,60954.0,60951.0,0.04905128]
[1723613646416,0.057403,60953.0,60951.0,0.04905128]
[1723613646618,0.187403,60953.0,60951.0,0.04905128]
[1723613647322,0.187403,60953.0,60952.0,0.04905128]
[1723613647713,0.13,60953.0,60950.0,0.04905128]
[1723613647918,0.13,60953.0,60948.0,0.00024622]
[1723613647919,0.13,60953.0,60949.0,0.04905128]
[1723613648310,0.13,60953.0,60948.0,0.00024622]
[1723613648311,0.13,60953.0,60948.0,0.04932462]
[1723613648515,0.057407,60949.0,60948.0,0.00024622]
[1723613648716,0.167407,60949.0,60948.0,0.00024622]
[1723613651124,0.167407,60949.0,60948.0,0.00324622]
[1723613652621,0.3608,60953.0,60948.0,0.00324622]
[1723613652819,0.4008,60953.0,60948.0,0.00324622]
[1723613653119,0.458203,60953.0,60948.0,0.14472462]
[1723613653719,0.4008,60953.0,60950.0,0.1064834]
[1723613653915,0.4008,60953.0,60950.0,0.057405]
[1723613654122,0.4008,60953.0,60950.0,0.12295414]
[1723613654725,0.458204,60953.0,60950.0,0.06554914]
[1723613655123,0.460204,60953.0,60950.0,0.06554914]
[1723613655933,0.099404,60953.0,60950.0,0.06554914]
[1723613656120,0.099404,60953.0,60949.0,0.06554914]
[1723613656322,0.099404,60953.0,60950.0,0.06654914]
[1723613657430,0.097404,60953.0,60950.0,0.06654914]
[1723613658031,0.098404,60953.0,60950.0,0.06654914]
[1723613658228,0.100404,60953.0,60950.0,0.06654914]
[1723613659123,0.057405,60951.0,60950.0,0.06654914]
[1723613659320,0.167405,60951.0,60950.0,0.06654914]
[1723613661327,0.169405,60951.0,60950.0,0.06654914]
[1723613662635,0.169405,60951.0,60950.0,0.001]
[1723613665739,0.112,60951.0,60950.0,0.001]
[1723613665934,0.002,60951.0,60950.0,0.1144]
[1723613666237,0.002,60951.0,60950.0,0.171806]
[1723613667639,0.002,60951.0,60950.0,0.25372996]
[1723613668738,0.002,60951.0,60950.0,0.171806]
[1723613668940,0.112,60951.0,60950.0,0.171806]
[1723613669335,0.112,60951.0,60950.0,0.058406]
[1723613670739,0.112,60951.0,60950.0,0.14032996]
[1723613670930,0.112,60951.0,60950.0,0.058406]
[1723613671234,0.112,60951.0,60950.0,0.14032996]
[1723613672336,0.112,60951.0,60950.0,0.26527358]
[1723613672535,0.2254,60951.0,60950.0,0.001]
[1723613673640,0.282805,60951.0,60950.0,0.06655]
[1723613675236,0.282805,60951.0,60950.0,0.001]
[1723613676548,0.169405,60951.0,60950.0,0.001]
[1723613677736,0.112,60951.0,60950.0,0.058406]
[1723613684140,0.112,60951.0,60950.0,0.18335196]
[1723613684340,0.112,60951.0,60950.0,0.26533831]
[1723613684544,0.112,60951.0,60950.0,0.26533844]
[1723613685148,0.112,60951.0,60950.0,0.18335196]
[1723613686749,0.002,60951.0,60950.0,0.54415196]
[1723613687443,0.06561768,60960.0,60950.0,1.37894596]
[1723613687648,0.03024622,60960.0,60959.0,0.1134]
[1723613687845,0.03024622,60960.0,60959.0,0.19537326]
[1723613688046,0.03024622,60960.0,60959.0,0.2104]
[1723613690042,0.03224622,60960.0,60959.0,0.2104]
[1723613691152,0.04424622,60960.0,60959.0,0.2104]
[1723613691338,0.05424622,60960.0,60959.0,0.2104]
[1723613692147,0.05424622,60960.0,60959.0,0.06549573]
[1723613692347,0.05424622,60960.0,60958.0,0.06549573]
[1723613692557,0.05424622,60960.0,60952.0,0.1134]
[1723613692558,0.057398,60958.0,60957.0,0.06549573]
[1723613692747,0.290798,60958.0,60956.0,0.06549573]
[1723613694755,0.296798,60958.0,60956.0,0.06549573]
[1723613694954,0.304798,60958.0,60956.0,0.06549573]
[1723613695553,0.057399,60957.0,60956.0,0.06549573]
[1723613695751,0.0574,60956.0,60955.0,0.06549573]
[1723613695951,0.057402,60954.0,60953.0,0.06549573]
[1723613696152,0.177402,60954.0,60953.0,0.06549573]
[1723613697254,0.177402,60954.0,60952.0,0.418204]
[1723613699555,0.177402,60954.0,60953.0,0.0455]
[1723613701563,0.181402,60954.0,60953.0,0.0455]
[1723613702060,0.184402,60954.0,60953.0,0.0455]
[1723613703357,0.180402,60954.0,60953.0,0.0455]
[1723613703858,0.185402,60954.0,60953.0,0.0455]
[1723613704656,0.185402,60954.0,60953.0,0.095]
[1723613705964,0.128,60954.0,60953.0,0.152403]
[1723613711566,0.185402,60954.0,60953.0,0.095]
[1723613712355,0.057404,60953.0,60950.0,0.50101926]
[1723613712555,0.177404,60953.0,60950.0,0.50017926]
[1723613713758,0.12,60953.0,60950.0,0.50017926]
[1723613713959,0.12,60953.0,60950.0,0.418206]
[1723613715865,0.2334,60953.0,60950.0,0.418206]
[1723613716067,0.057404,60952.0,60950.0,0.418206]
[1723613716270,0.177404,60952.0,60950.0,0.418206]
[1723613717060,0.177404,60952.0,60950.0,0.419206]
[1723613717262,0.170805,60951.0,60950.0,0.3618]
[1723613717569,0.290805,60951.0,60950.0,0.3618]
[1723613718365,0.11287146,60954.0,60950.0,0.3618]
[1723613718366,0.06537146,60954.0,60950.0,0.3618]
[1723613718557,0.01,60954.0,60953.0,0.1134]
[1723613719863,0.01,60954.0,60953.0,0.170803]
[1723613720872,0.012,60954.0,60953.0,0.170803]
[1723613721575,0.012,60954.0,60953.0,0.220703]
[1723613722071,0.018,60954.0,60953.0,0.34564849]
[1723613725372,0.018,60954.0,60953.0,0.39354849]
[1723613725873,0.018,60954.0,60953.0,0.28014849]
[1723613727765,0.018,60954.0,60953.0,0.3785164]
[1723613730979,0.018,60954.0,60953.0,0.77230849]
[1723613731173,0.00024622,60960.0,60957.0,0.057399]
[1723613731374,0.07024622,60960.0,60957.0,0.13937315]
[1723613731771,0.07024622,60960.0,60958.0,0.057398]
[1723613732577,0.07924622,60960.0,60958.0,0.057398]
[1723613733374,0.07024622,60960.0,60958.0,0.057398]
[1723613733780,0.07024622,60960.0,60956.0,0.08197415]
[1723613733978,0.0465,60959.0,60955.0,0.08197415]
[1723613734171,0.1465,60959.0,60955.0,0.08197415]
[1723613734367,0.26926846,60959.0,60958.0,0.06557351]
[1723613736079,0.63006846,60959.0,60958.0,0.06557351]
[1723613736986,0.67546846,60959.0,60958.0,0.06557351]
[1723613737371,0.67546846,60959.0,60958.0,0.06657351]
[1723613737969,0.67546846,60959.0,60958.0,0.06557351]
[1723613738474,0.67546846,60959.0,60958.0,0.06757351]
[1723613738475,0.69346846,60959.0,60958.0,0.06757351]
[1723613738876,0.69346846,60959.0,60958.0,0.002]
[1723613739182,0.69946846,60959.0,60958.0,0.003]
[1723613739683,0.69746846,60959.0,60958.0,0.003]
[1723613740186,0.68946846,60959.0,60958.0,0.003]
[1723613740573,0.624097,60959.0,60958.0,0.003]
[1723613740773,0.68951683,60959.0,60958.0,0.003]
[1723613740981,0.69651683,60959.0,60958.0,0.003]
[1723613742886,0.68251683,60959.0,60958.0,0.001]
[1723613743187,0.622097,60959.0,60958.0,0.06757486]
[1723613744082,0.622097,60959.0,60958.0,0.002]
[1723613747975,0.735497,60959.0,60958.0,0.002]
[1723613749591,0.80092584,60959.0,60958.0,0.002]
[1723613749984,0.735497,60959.0,60958.0,0.002]
[1723613750185,0.80092743,60959.0,60958.0,0.002]
[1723613750789,0.75552743,60959.0,60958.0,0.002]
[1723613752893,0.39472743,60959.0,60958.0,0.002]
[1723613753092,0.329297,60959.0,60958.0,0.002]
[1723613753586,0.39473105,60959.0,60958.0,0.002]
[1723613756382,0.329297,60959.0,60958.0,0.002]
[1723613756592,0.39474659,60959.0,60958.0,0.002]
[1723613756989,0.329297,60959.0,60958.0,0.002]
[1723613757495,0.282797,60959.0,60958.0,0.002]
[1723613758496,0.169397,60959.0,60958.0,0.1154]
[1723613758793,0.112,60959.0,60958.0,0.1154]
[1723613759093,0.112,60959.0,60958.0,0.172798]
[1723613761393,0.112,60959.0,60958.0,0.37970823]
[1723613761900,0.112,60959.0,60958.0,0.26630823]
[1723613762086,0.112,60959.0,60958.0,0.37970823]
[1723613764297,0.112,60959.0,60958.0,0.29773408]
[1723613765196,0.112,60959.0,60958.0,0.39610199]
[1723613766098,0.112,60959.0,60958.0,0.29773408]
[1723613766803,0.112,60959.0,60958.0,0.29772191]
[1723613768001,0.112,60959.0,60958.0,0.29772256]
[1723613774618,0.2254,60959.0,60958.0,0.26620101]
[1723613774821,0.2254,60959.0,60958.0,0.14127645]
[1723613775020,0.2254,60959.0,60958.0,0.059398]
[1723613775918,0.112,60959.0,60958.0,0.059398]
[1723613776111,0.112,60959.0,60958.0,0.14127645]
[1723613776310,0.112,60959.0,60958.0,0.26620257]
[1723613776906,0.112,60959.0,60958.0,0.18432412]
[1723613777311,0.112,60959.0,60958.0,0.18432245]
[1723613779715,0.012,60959.0,60958.0,0.18432245]
[1723613780023,0.012,60959.0,60958.0,0.28269036]
[1723613780412,0.06544959,60970.0,60958.0,0.12692445]
[1723613780613,0.06544959,60970.0,60968.0,0.057389]
[1723613780614,0.04,60970.0,60968.0,0.057389]
[1723613782621,0.047,60970.0,60968.0,0.057389]
[1723613783024,0.007,60970.0,60969.0,0.057388]
[1723613783220,0.012,60970.0,60969.0,0.057388]
[1723613783813,0.3228,60972.0,60969.0,0.057388]
[1723613784014,0.3228,60972.0,60971.0,0.1134]
[1723613784424,0.3596,60973.0,60971.0,0.1134]
[1723613784627,0.4596,60973.0,60971.0,0.1134]
[1723613784818,0.012,60970.0,60969.0,0.419188]
[1723613786025,0.025,60970.0,60969.0,0.419188]
[1723613786424,0.06539658,60971.0,60969.0,0.419188]
[1723613786621,0.06539658,60972.0,60971.0,0.001]
[1723613786826,0.16539658,60972.0,60971.0,0.001]
[1723613787528,0.25179658,60972.0,60971.0,0.001]
[1723613787928,0.13839658,60972.0,60971.0,0.001]
[1723613788227,0.1,60972.0,60971.0,0.058386]
[1723613788816,0.1,60972.0,60971.0,0.057386]
[1723613789022,0.1,60972.0,60971.0,0.10651032]
[1723613789226,0.1,60972.0,60971.0,0.122891]
[1723613789530,0.101,60972.0,60971.0,0.059386]
[1723613790127,0.101,60972.0,60971.0,0.12487959]
[1723613793226,0.101,60972.0,60971.0,0.059386]
[1723613794132,0.101,60972.0,60971.0,0.12488413]
[1723613794930,0.101,60972.0,60971.0,0.059386]
[1723613796231,0.051,60972.0,60971.0,0.059386]
[1723613799034,0.1644,60972.0,60971.0,0.002]
[1723613799331,0.221785,60972.0,60971.0,0.0674937]
[1723613799727,0.221785,60972.0,60971.0,0.002]
[1723613801728,1.17121,60972.0,60971.0,0.002]
[1723613801928,1.10571,60972.0,60971.0,0.002]
[1723613802227,1.30070887,60972.0,60971.0,0.002]
[1723613802735,1.2456896,60972.0,60971.0,0.002]
[1723613802927,1.3007928,60972.0,60971.0,0.002]